bitfinex/quotes_SOLUSD_20241113
["timestamp","ask_amount","ask_price","bid_price","bid_amount"]
[1731456973931,38.50320677,211.04,210.96,38.50320677]
[1731456974346,38.50320677,211.04,210.97,4.74]
[1731456974549,38.50320677,211.02,210.95,4.7403]
[1731456974848,38.50320677,210.98,210.9,38.50320677]
[1731456975447,38.50320677,210.98,210.85,38.50320677]
[1731456975448,38.50320677,210.94,210.85,38.50320677]
[1731456975640,22.3932,211.0,210.93,38.50320677]
[1731456976349,22.3932,211.0,210.93,43.24400677]
[1731456976654,16.3762,211.08,210.99,38.50320677]
[1731456976860,45.14630677,211.13,211.05,38.50320677]
[1731456977033,6.6431,211.13,211.08,38.50320677]
[1731456977349,43.23920677,211.15,211.08,38.50320677]
[1731456977653,38.50320677,211.13,211.06,38.50320677]
[1731456977852,43.23920677,211.15,211.08,38.50320677]
[1731456978040,38.50320677,211.15,211.08,38.50320677]
[1731456978244,38.50320677,211.15,211.0,0.15841305]
[1731456978245,16.3762,211.16,211.1,38.50320677]
[1731456978543,38.50320677,211.15,211.08,38.50320677]
[1731456978845,16.3762,211.16,211.08,38.50320677]
[1731456979952,45.14630677,211.19,211.12,38.50320677]
[1731456980163,0.4658981,211.2,211.14,38.50320677]
[1731456980334,0.4658981,211.2,211.12,38.50320677]
[1731456980652,38.50320677,211.17,211.09,16.5805]
[1731456980955,38.50320677,211.15,211.06,38.50320677]
[1731456981250,38.50320677,211.15,210.98,38.50320677]
[1731456981251,38.50320677,211.17,211.1,38.50320677]
[1731456981449,38.50320677,211.17,211.08,38.50320677]
[1731456981670,38.50320677,211.11,211.04,16.5844]
[1731456981947,38.50320677,211.1,211.04,11.846]
[1731456982135,38.50320677,211.12,211.04,50.34920677]
[1731456982334,38.50320677,211.14,211.06,38.50320677]
[1731456982542,38.50320677,211.16,211.08,38.50320677]
[1731456982936,38.50320677,211.18,211.1,38.50320677]
[1731456983142,38.96910487,211.2,211.12,38.50320677]
[1731456983342,0.4658981,211.2,211.16,38.50320677]
[1731456984235,0.4658981,211.2,211.18,38.50320677]
[1731456984436,0.4658981,211.2,211.18,43.23830677]
[1731456984734,0.4658981,211.2,211.18,16.5733]
[1731456984935,38.96910487,211.2,211.12,38.50320677]
[1731456985135,38.50320677,211.18,211.11,0.12549]
[1731456985349,38.50320677,211.14,211.11,0.12549]
[1731456985833,43.70400487,211.2,211.13,38.50320677]
[1731456985834,0.4658981,211.2,211.13,38.50320677]
[1731456986036,38.50320677,211.19,211.11,50.47079677]
[1731456986450,0.4658981,211.2,211.13,38.50320677]
[1731456986644,0.4658981,211.2,211.14,4.7361]
[1731456986852,0.4658981,211.2,211.14,16.5765]
[1731456987151,0.4658981,211.2,211.14,11.8404]
[1731456987356,38.50320677,211.19,211.14,11.8404]
[1731456987562,43.23820677,211.19,211.11,38.62869677]
[1731456987852,38.50320677,211.15,211.11,0.12549]
[1731456988060,38.50320677,211.13,211.11,0.12549]
[1731456988248,23.776884,211.12,211.11,0.12549]
[1731456988560,28.513484,211.12,211.11,0.12549]
[1731456988858,23.776884,211.08,210.95,43.24350677]
[1731456989157,38.50320677,211.03,210.95,43.24350677]
[1731456989354,38.50320677,211.05,210.98,38.50320677]
[1731456989539,38.50320677,211.03,210.95,16.5914]
[1731456989736,38.50320677,210.99,210.9,43.24470677]
[1731456990369,38.50320677,210.95,210.86,43.24560677]
[1731456990664,38.50320677,210.91,210.85,11.8566]
[1731456990857,38.50320677,210.87,210.81,4.7435]
[1731456991159,38.50320677,210.89,210.82,38.50320677]
[1731456991461,38.50320677,210.91,210.82,38.50320677]
[1731456991956,38.50320677,210.89,210.82,38.50320677]
[1731456992258,38.50320677,210.85,210.79,4.7439]
[1731456992461,38.50320677,210.85,210.76,43.24780677]
[1731456992765,38.50320677,210.83,210.76,55.10960677]
[1731456993247,38.50320677,210.83,210.76,16.6064]
[1731456994363,38.50320677,210.86,210.79,38.50320677]
[1731456994765,38.50320677,210.88,210.79,38.50320677]
[1731456995059,38.50320677,210.89,210.81,38.50320677]
[1731456995273,4.7414,210.91,210.77,16.6055]
[1731456995274,38.50320677,210.91,210.83,38.50320677]
[1731456995571,38.50320677,210.87,210.8,38.50320677]
[1731456995944,38.50320677,210.89,210.82,38.50320677]
[1731456996261,38.50320677,210.91,210.82,38.50320677]
[1731456996566,38.50320677,210.89,210.8,38.50320677]
[1731456996869,38.50320677,210.9,210.82,38.50320677]
[1731456997056,38.50320677,210.89,210.82,38.50320677]
[1731456997443,38.50320677,210.87,210.8,38.50320677]
[1731456997645,38.50320677,210.89,210.82,38.50320677]
[1731456997847,38.50320677,210.97,210.88,38.50320677]
[1731456998051,38.50320677,210.99,210.9,38.50320677]
[1731456998264,38.50320677,210.93,210.86,38.50320677]
[1731456998654,38.50320677,210.95,210.86,38.50320677]
[1731456998850,38.50320677,210.99,210.9,38.50320677]
[1731456999161,38.50320677,210.97,210.88,38.50320677]
[1731456999474,38.50320677,210.95,210.86,38.50320677]
[1731456999761,38.50320677,210.95,210.88,38.50320677]
[1731457000363,38.50320677,210.97,210.88,38.50320677]
[1731457000574,38.50320677,211.01,210.88,4.7418]
[1731457000774,21.1213,211.02,210.88,55.10000677]
[1731457000775,38.50320677,210.95,210.88,55.10000677]
[1731457001064,38.50320677,210.91,210.82,50.36140677]
[1731457001271,38.50320677,210.91,210.82,55.10470677]
[1731457001768,7.1507056,211.0,210.9,38.50320677]
[1731457001982,38.50320677,210.97,210.88,38.50320677]
[1731457002267,38.50320677,210.93,210.86,38.50320677]
[1731457002574,38.50320677,210.93,210.84,43.24600677]
[1731457002750,38.50320677,210.95,210.86,38.50320677]
[1731457002951,4.74,210.97,210.84,16.6001]
[1731457002952,38.50320677,210.93,210.84,55.10330677]
[1731457003263,38.50320677,210.93,210.86,38.50320677]
[1731457003972,43.24380677,210.95,210.86,43.24550677]
[1731457004154,38.50320677,210.93,210.86,38.50320677]
[1731457004350,38.50320677,210.93,210.86,43.24550677]
[1731457004782,38.50320677,210.99,210.9,38.50320677]
[1731457005067,43.24240677,211.01,210.92,38.50320677]
[1731457005254,38.50320677,211.06,210.96,38.50320677]
[1731457005659,38.50320677,211.06,210.99,4.7395]
[1731457005865,43.24070677,211.08,210.99,4.7395]
[1731457006063,38.50320677,211.06,210.99,4.7395]
[1731457006257,38.50320677,211.06,210.98,50.35250677]
[1731457006580,23.776884,211.07,210.98,55.09220677]
[1731457006867,43.24070677,211.08,210.98,55.09220677]
[1731457007372,38.50320677,211.06,210.98,11.8493]
[1731457007576,38.50320677,211.04,210.98,11.8493]
[1731457007784,38.50320677,211.02,210.93,11.8521]
[1731457008072,38.50320677,211.01,210.93,11.8521]
[1731457008467,38.50320677,211.01,210.94,38.50320677]
[1731457008680,38.50320677,211.01,210.93,11.8521]
[1731457008851,38.50320677,210.95,210.88,38.53651381]
[1731457009054,38.50320677,210.93,210.88,0.03330704]
[1731457009254,38.50320677,210.93,210.86,38.50320677]
[1731457009467,38.50320677,210.91,210.83,11.8576]
[1731457009670,38.50320677,210.89,210.8,43.24690677]
[1731457009900,38.50320677,210.89,210.8,55.10640677]
[1731457010488,23.976884,210.99,210.8,55.10640677]
[1731457010489,38.50320677,210.99,210.88,38.50320677]
[1731457010793,38.50320677,210.95,210.86,38.50320677]
[1731457010974,38.50320677,210.95,210.88,38.50320677]
[1731457011175,4.7402,210.96,210.88,38.50320677]
[1731457011877,4.7402,210.96,210.88,43.24520677]
[1731457012194,38.50320677,210.97,210.9,38.50320677]
[1731457012485,43.24330677,210.97,210.88,50.35820677]
[1731457012690,38.50320677,210.95,210.88,11.855]
[1731457012868,43.24330677,210.97,210.88,55.10020677]
[1731457013381,38.50320677,210.95,210.88,55.10020677]
[1731457013580,16.1461,211.08,210.9,38.50320677]
[1731457013790,38.50320677,211.0,210.92,38.50320677]
[1731457013970,38.50320677,210.98,210.9,38.50320677]
[1731457014972,38.50320677,210.98,210.89,4.7417]
[1731457015173,38.50320677,210.98,210.9,38.50320677]
[1731457015373,43.24250677,211.0,210.92,38.50320677]
[1731457015889,38.50320677,210.96,210.89,16.5962]
[1731457016492,38.50320677,210.98,210.89,16.5962]
[1731457017676,23.902374,210.97,210.84,11.8568]
[1731457017887,38.50320677,210.9,210.84,11.8568]
[1731457018186,38.50320677,210.88,210.81,4.7436]
[1731457018396,38.50320677,210.88,210.81,16.6026]
[1731457019186,38.50320677,210.92,210.84,38.50320677]
[1731457019375,38.50320677,210.96,210.88,38.50320677]
[1731457019576,38.50320677,210.98,210.9,38.50320677]
[1731457019779,38.50320677,210.94,210.88,38.50320677]
[1731457020272,15.3339,211.01,210.93,38.50320677]
[1731457020486,38.50320677,211.05,210.98,38.50320677]
[1731457020690,38.50320677,211.06,210.99,38.50320677]
[1731457021582,38.50320677,211.06,210.99,43.24270677]
[1731457021897,61.22690677,211.08,211.01,38.50320677]
[1731457022104,38.50320677,211.08,211.01,38.50320677]
[1731457022277,61.16380677,211.14,211.05,38.50320677]
[1731457022477,38.50320677,211.14,211.07,38.50320677]
[1731457022686,38.50320677,211.12,211.04,38.50320677]
[1731457022878,38.50320677,211.1,211.02,38.50320677]
[1731457023106,38.50320677,211.05,210.99,16.5884]
[1731457023279,38.50320677,211.05,210.99,11.8489]
[1731457023474,38.50320677,211.01,210.94,11.8513]
[1731457023696,38.50320677,210.95,210.88,0.12549]
[1731457023996,38.50320677,210.91,210.88,0.12549]
[1731457024898,38.50320677,210.89,210.88,0.12549]
[1731457025104,62.28009077,210.89,210.88,0.12549]
[1731457025596,60.33620677,210.93,210.88,4.86739]
[1731457025798,0.1,211.01,210.9,38.50320677]
[1731457025799,38.50320677,210.98,210.9,38.50320677]
[1731457026013,15.9628,211.01,210.88,16.72239]
[1731457026014,38.50320677,210.96,210.88,55.22559677]
[1731457026191,38.50320677,210.92,210.88,0.12549]
[1731457026394,38.50320677,210.9,210.88,0.12549]
[1731457026693,0.1,210.87,210.73,0.03333074]
[1731457026897,38.50320677,210.8,210.73,4.77853074]
[1731457027796,38.50320677,210.78,210.73,11.89683074]
[1731457028133,38.50320677,210.8,210.73,11.89683074]
[1731457028796,38.50320677,210.78,210.73,11.89683074]
[1731457030096,38.50320677,210.82,210.74,38.50320677]
[1731457030298,38.50320677,210.78,210.73,11.89683074]
[1731457031700,38.50320677,210.76,210.73,11.89683074]
[1731457032320,38.50320677,210.74,210.73,0.03333074]
[1731457032621,4.7443,210.78,210.67,38.50320677]
[1731457032802,38.50320677,210.76,210.68,38.50320677]
[1731457033003,38.50320677,210.76,210.67,38.50320677]
[1731457033202,38.50320677,210.74,210.67,38.50320677]
[1731457033396,38.50320677,210.74,210.65,38.50320677]
[1731457033603,38.50320677,210.72,210.65,38.50320677]
[1731457033801,38.50320677,210.78,210.71,38.50320677]
[1731457033993,38.50320677,210.79,210.71,38.50320677]
[1731457034200,38.50320677,210.77,210.69,38.50320677]
[1731457034405,38.50320677,210.75,210.67,38.50320677]
[1731457034804,38.50320677,210.76,210.69,38.50320677]
[1731457035103,38.50320677,210.77,210.69,38.50320677]
[1731457035603,38.50320677,210.78,210.71,38.50320677]
[1731457036002,38.50320677,210.79,210.72,38.50320677]
[1731457036509,38.50320677,210.79,210.71,38.50320677]
[1731457036713,38.50320677,210.77,210.69,38.50320677]
[1731457036914,38.50320677,210.81,210.73,38.50320677]
[1731457037799,38.50320677,210.81,210.74,4.7451]
[1731457038521,38.50320677,210.83,210.76,38.50320677]
[1731457038729,38.50320677,210.82,210.74,55.11120677]
[1731457038895,38.50320677,210.79,210.74,11.8629]
[1731457039096,38.50320677,210.76,210.69,16.6118]
[1731457039415,55.20110677,210.87,210.69,16.6118]
[1731457039416,38.50320677,210.74,210.69,16.6118]
[1731457039722,38.50320677,210.71,210.65,4.747]
[1731457040305,38.50320677,210.72,210.65,4.747]
[1731457040820,38.50320677,210.7,210.64,11.8683]
[1731457041318,38.50320677,210.68,210.63,0.03334657]
[1731457041617,38.50320677,210.71,210.63,4.78074657]
[1731457041821,38.50320677,210.71,210.63,16.64984657]
[1731457042023,38.50320677,210.72,210.64,38.50320677]
[1731457042199,38.50320677,210.72,210.65,38.50320677]
[1731457042700,38.50320677,210.7,210.63,16.64984657]
[1731457043320,38.50320677,210.7,210.63,55.15305334]
[1731457043708,38.50320677,210.7,210.63,0.03334657]
[1731457043910,38.50320677,210.74,210.66,38.50320677]
[1731457044102,38.50320677,210.74,210.64,38.50320677]
[1731457044300,38.50320677,210.72,210.64,38.50320677]
[1731457044920,38.50320677,210.74,210.66,38.50320677]
[1731457045226,38.50320677,210.78,210.71,38.50320677]
[1731457045425,38.50320677,210.8,210.72,38.50320677]
[1731457045643,38.50320677,210.79,210.71,38.50320677]
[1731457046326,44.59240677,210.81,210.73,38.50320677]
[1731457046514,38.50320677,210.81,210.73,38.50320677]
[1731457046825,38.50320677,210.79,210.71,38.50320677]
[1731457047049,38.50320677,210.78,210.71,38.50320677]
[1731457047758,38.50320677,210.78,210.66,40.3492]
[1731457047759,38.50320677,210.76,210.7,4.746]
[1731457048055,38.50320677,210.76,210.7,16.6112]
[1731457048560,16.3316,210.82,210.74,38.50320677]
[1731457048940,38.50320677,210.81,210.74,38.50320677]
[1731457049457,38.50320677,210.77,210.7,55.11440677]
[1731457049642,38.50320677,210.75,210.7,11.8652]
[1731457050356,38.50320677,210.77,210.7,50.36840677]
[1731457050669,38.50320677,210.77,210.68,38.50320677]
[1731457050852,38.50320677,210.77,210.7,38.50320677]
[1731457051069,38.50320677,210.77,210.68,38.50320677]
[1731457051862,38.50320677,210.79,210.71,38.50320677]
[1731457052040,23.776884,210.81,210.69,16.612]
[1731457052041,54.83480677,210.82,210.74,38.50320677]
[1731457052246,6.0892,210.86,210.69,16.612]
[1731457052247,38.50320677,210.84,210.76,38.50320677]
[1731457052560,38.50320677,210.86,210.78,38.50320677]
[1731457052856,38.50320677,210.81,210.72,38.50320677]
[1731457053044,38.50320677,210.78,210.71,38.50320677]
[1731457053247,38.50320677,210.78,210.7,38.50320677]
[1731457053451,38.50320677,210.8,210.72,38.50320677]
[1731457053648,38.50320677,210.79,210.71,38.50320677]
[1731457053863,38.50320677,210.78,210.72,4.7456]
[1731457054370,38.50320677,210.8,210.72,55.11280677]
[1731457054568,38.50320677,210.79,210.72,16.6096]
[1731457055065,38.50320677,210.8,210.72,55.11280677]
[1731457055260,38.50320677,210.84,210.77,38.50320677]
[1731457055458,38.50320677,210.85,210.77,38.50320677]
[1731457055764,17.96030254,210.93,210.72,40.3377]
[1731457055765,38.50320677,210.87,210.79,38.50320677]
[1731457056072,38.50320677,210.88,210.76,0.07918583]
[1731457056364,38.50320677,210.88,210.8,38.50320677]
[1731457056544,38.50320677,210.86,210.78,38.50320677]
[1731457056745,44.61070931,210.88,210.8,38.50320677]
[1731457056944,38.50320677,210.87,210.8,38.50320677]
[1731457057159,38.50320677,210.86,210.78,38.50320677]
[1731457057564,38.50320677,210.8,210.72,16.6096]
[1731457057762,38.50320677,210.81,210.74,38.50320677]
[1731457058065,4.7432,210.83,210.75,16.6072]
[1731457058268,38.50320677,210.79,210.73,4.7452]
[1731457058447,24.7428,210.85,210.73,4.7452]
[1731457058650,23.902374,210.84,210.73,4.7452]
[1731457058862,30.00987654,210.84,210.73,16.6087]
[1731457059049,4.7428,210.85,210.73,16.6087]
[1731457059251,20.3203,210.89,210.73,16.6087]
[1731457059551,38.50320677,210.88,210.81,38.50320677]
[1731457060054,38.50320677,210.88,210.82,4.7433]
[1731457060458,15.4967,210.95,210.87,38.50320677]
[1731457060669,15.4967,210.95,210.9,38.50320677]
[1731457060868,17.95390254,211.04,210.82,16.6017]
[1731457060869,38.50320677,211.0,210.93,38.50320677]
[1731457061054,15.4967,211.01,210.88,20.0]
[1731457061372,0.12549,211.0,210.82,16.6017]
[1731457061550,26.44340254,211.01,210.82,16.6017]
[1731457061758,4.74,210.97,210.82,11.8584]
[1731457061953,6.23299254,210.96,210.82,11.8584]
[1731457062156,20.0,210.95,210.82,11.8584]
[1731457062369,20.0,210.95,210.76,55.07743399]
[1731457062370,38.50320677,210.85,210.78,38.50320677]
[1731457062577,38.50320677,210.83,210.77,4.7442]
[1731457063077,38.50320677,210.82,210.76,11.8616]
[1731457063669,38.50320677,210.77,210.7,50.36790677]
[1731457063874,38.50320677,210.8,210.72,38.50320677]
[1731457064051,38.50320677,210.79,210.7,16.6107]
[1731457064253,38.50320677,210.79,210.72,38.50320677]
[1731457064456,38.50320677,210.79,210.71,38.50320677]
[1731457064670,38.50320677,210.79,210.72,38.50320677]
[1731457065053,38.50320677,210.81,210.74,38.50320677]
[1731457065255,38.50320677,210.8,210.72,55.11270677]
[1731457065564,38.50320677,210.8,210.73,38.50320677]
[1731457066077,38.50320677,210.81,210.73,43.24830677]
[1731457066268,38.50320677,210.83,210.75,38.50320677]
[1731457066482,38.50320677,210.83,210.76,38.50320677]
[1731457066663,38.50320677,210.85,210.78,38.50320677]
[1731457067157,38.50320677,210.85,210.77,38.50320677]
[1731457067552,43.24590677,210.85,210.77,43.24760677]
[1731457067961,15.753,210.88,210.82,38.50320677]
[1731457068166,0.1,210.99,210.85,38.50320677]
[1731457068167,38.50320677,210.92,210.85,38.50320677]
[1731457068455,38.50320677,210.91,210.83,38.50320677]
[1731457069269,4.7412,210.92,210.83,38.50320677]
[1731457069270,38.50320677,210.9,210.83,38.50320677]
[1731457069488,43.24470677,210.9,210.83,38.50320677]
[1731457069662,38.50320677,210.86,210.79,38.50320677]
[1731457069977,38.50320677,210.82,210.74,38.50320677]
[1731457070169,38.50320677,210.79,210.71,55.11360677]
[1731457071158,43.24730677,210.79,210.71,55.11360677]
[1731457072064,38.50320677,210.77,210.71,55.11360677]
[1731457072259,38.50320677,210.77,210.71,11.8646]
[1731457072460,43.24730677,210.79,210.71,55.11360677]
[1731457072862,38.50320677,210.77,210.71,11.8646]
[1731457073058,38.50320677,210.73,210.63,38.50320677]
[1731457073263,87.15138077,210.71,210.59,43.25170677]
[1731457073591,38.50320677,210.67,210.59,43.25170677]
[1731457074081,38.50320677,210.76,210.59,43.25170677]
[1731457074082,38.50320677,210.69,210.62,38.50320677]
[1731457074879,38.50320677,210.72,210.66,38.50320677]
[1731457075089,38.50320677,210.76,210.69,38.50320677]
[1731457075260,43.24780677,210.77,210.69,38.50320677]
[1731457075784,38.50320677,210.77,210.69,38.50320677]
[1731457076078,38.50320677,210.81,210.73,38.50320677]
[1731457076466,54.55300677,210.82,210.75,38.50320677]
[1731457076755,38.50320677,210.85,210.78,38.50320677]
[1731457076973,38.50320677,210.87,210.8,38.50320677]
[1731457077489,38.50320677,210.87,210.8,43.24690677]
[1731457077661,15.3157,210.88,210.83,38.50320677]
[1731457077861,15.3157,210.88,210.81,38.50320677]
[1731457078461,20.0577,210.88,210.81,38.50320677]
[1731457078660,15.3157,210.88,210.81,38.50320677]
[1731457079175,38.50320677,210.87,210.8,11.8595]
[1731457079355,43.24560677,210.87,210.8,11.8595]
[1731457079769,38.50320677,210.87,210.8,16.6033]
[1731457079971,38.50320677,210.87,210.8,11.8595]
[1731457079972,43.24550677,210.87,210.8,11.8595]
[1731457080185,15.3157,210.88,210.8,50.36270677]
[1731457080362,38.50320677,210.91,210.82,38.50320677]
[1731457081381,38.50320677,210.85,210.78,38.50320677]
[1731457081675,38.50320677,210.87,210.8,38.50320677]
[1731457081976,38.50320677,210.89,210.8,38.50320677]
[1731457082480,38.50320677,210.85,210.78,38.50320677]
[1731457082973,38.50320677,210.85,210.78,43.24730677]
[1731457083179,38.50320677,210.84,210.78,4.7441]
[1731457083481,38.50320677,210.84,210.75,38.50320677]
[1731457083779,4.742,210.88,210.77,38.50320677]
[1731457083780,38.50320677,210.85,210.77,38.50320677]
[1731457084361,38.50320677,210.79,210.73,16.6087]
[1731457084575,38.50320677,210.76,210.69,4.7461]
[1731457084776,38.50320677,210.74,210.68,16.6123]
[1731457085090,38.50320677,210.73,210.66,4.78014182]
[1731457085289,38.50320677,210.73,210.66,0.03334182]
[1731457085491,38.50320677,210.75,210.67,38.50320677]
[1731457085689,38.50320677,210.72,210.66,11.90074182]
[1731457085871,38.50320677,210.68,210.66,0.03334182]
[1731457086075,38.50320677,210.67,210.66,0.03334182]
[1731457086888,21.7514,210.71,210.66,0.03334182]
[1731457087066,38.50320677,210.74,210.67,38.50320677]
[1731457087267,38.50320677,210.75,210.67,38.50320677]
[1731457087489,38.50320677,210.73,210.66,0.03334182]
[1731457087787,15.4176,210.77,210.71,38.50320677]
[1731457087989,38.50320677,210.82,210.75,38.50320677]
[1731457088305,11.3502,210.89,210.81,38.50320677]
[1731457088590,6.6083,210.89,210.73,20.0]
[1731457088902,6.0234,210.95,210.77,20.07922722]
[1731457089068,3.24,210.97,210.85,0.07922722]
[1731457089270,6.0234,211.02,210.86,20.0]
[1731457089487,6.0234,211.02,210.9,38.50320677]
[1731457089488,38.50320677,210.98,210.9,38.50320677]
[1731457089683,38.50320677,210.92,210.85,38.50320677]
[1731457089889,6.10750254,210.92,210.78,4.7442]
[1731457090402,23.902374,210.91,210.78,4.7442]
[1731457090870,20.0,210.97,210.78,4.7442]
[1731457091075,38.50320677,210.91,210.84,43.24590677]
[1731457091290,38.50320677,210.98,210.9,38.50320677]
[1731457091592,38.50320677,210.99,210.92,38.50320677]
[1731457091792,38.50320677,211.01,210.93,38.50320677]
[1731457092014,16.2609,211.05,210.9,23.98155983]
[1731457092415,16.2609,211.05,210.99,38.50320677]
[1731457092708,54.76410677,211.05,210.97,38.50320677]
[1731457092913,0.12549,210.98,210.91,38.50320677]
[1731457093217,38.50320677,211.02,210.94,38.50320677]
[1731457093604,38.50320677,211.02,210.95,38.50320677]
[1731457093803,38.50320677,211.0,210.94,38.50320677]
[1731457094017,38.50320677,211.02,210.95,38.50320677]
[1731457094215,0.12549,211.01,210.94,38.50320677]
[1731457094522,0.12549,210.97,210.92,38.50320677]
[1731457095098,38.50320677,211.01,210.93,38.50320677]
[1731457095301,38.50320677,211.01,210.94,38.50320677]
[1731457095617,0.12549,210.96,210.89,38.50320677]
[1731457095910,38.62869677,210.96,210.89,38.50320677]
[1731457096418,38.62869677,210.96,210.88,38.50320677]
[1731457096593,38.62869677,210.96,210.89,38.50320677]
[1731457096990,0.12549,210.94,210.88,4.7419]
[1731457097496,38.50320677,210.97,210.9,38.50320677]
[1731457098020,0.12549,210.96,210.9,38.50320677]
[1731457098205,0.12549,210.94,210.88,50.35820677]
[1731457098403,38.50320677,210.93,210.88,11.855]
[1731457099025,38.50320677,210.97,210.88,50.35820677]
[1731457099199,38.50320677,211.0,210.92,38.50320677]
[1731457099402,38.50320677,211.01,210.94,38.50320677]
[1731457099611,38.50320677,211.02,210.94,38.50320677]
[1731457099931,38.50320677,211.02,210.95,38.50320677]
[1731457100117,38.50320677,211.0,210.93,38.50320677]
[1731457100309,0.12549,210.99,210.94,38.50320677]
[1731457100810,38.50320677,211.02,210.95,43.24360677]
[1731457101127,38.62869677,211.01,210.93,55.09600677]
[1731457101501,38.62869677,211.01,210.94,38.50320677]
[1731457102008,38.50320677,211.04,210.96,38.50320677]
[1731457102217,38.50320677,211.09,211.02,38.50320677]
[1731457102411,0.12549,211.05,210.98,38.50320677]
[1731457103201,38.50320677,211.02,210.95,4.7403]
[1731457103404,38.62869677,210.97,210.88,11.8547]
[1731457103616,38.50320677,210.89,210.81,38.50320677]
[1731457103818,38.50320677,210.88,210.83,11.8576]
[1731457104099,0.12549,210.9,210.83,11.8576]
[1731457104822,4.7406,210.95,210.78,16.6049]
[1731457105121,6.2545,210.96,210.88,38.50320677]
[1731457105333,38.50320677,210.94,210.8,0.07918583]
[1731457105501,38.50320677,210.94,210.79,20.07922722]
[1731457105502,38.50320677,210.9,210.83,38.50320677]
[1731457105702,38.50320677,210.9,210.81,38.50320677]
[1731457105928,0.12549,210.92,210.78,16.6049]
[1731457106102,38.50320677,210.85,210.78,55.10810677]
[1731457106302,0.12549,210.86,210.79,38.50320677]
[1731457106615,38.50320677,210.88,210.8,38.50320677]
[1731457106801,0.12549,210.85,210.78,50.36390677]
[1731457107002,0.12549,210.85,210.79,38.50320677]
[1731457107212,38.50320677,210.88,210.79,38.50320677]
[1731457107634,38.62869677,210.89,210.81,38.50320677]
[1731457107822,0.12549,210.88,210.83,38.50320677]
[1731457108322,0.12549,210.88,210.81,38.50320677]
[1731457108820,0.12549,210.88,210.82,4.7433]
[1731457109416,38.50320677,210.89,210.83,38.50320677]
[1731457109611,0.12549,210.86,210.79,38.50320677]
[1731457109922,38.50320677,210.83,210.78,4.7442]
[1731457110105,38.50320677,210.85,210.78,4.7442]
[1731457110306,38.50320677,210.87,210.79,38.50320677]
[1731457110615,0.12549,210.88,210.82,38.50320677]
[1731457110821,16.3664,210.97,210.87,38.50320677]
[1731457110822,38.50320677,210.96,210.87,38.50320677]
[1731457111126,16.3664,210.97,210.91,38.50320677]
[1731457111327,16.3664,210.97,210.85,16.5994]
[1731457111508,21.1064,210.97,210.85,16.5994]
[1731457111709,0.12549,210.96,210.89,38.50320677]
[1731457111928,16.3664,210.97,210.92,38.50320677]
[1731457112328,16.3664,210.97,210.91,38.50320677]
[1731457112708,54.86960677,210.97,210.89,38.50320677]
[1731457112909,16.3664,210.97,210.91,38.50320677]
[1731457114208,0.12549,210.96,210.9,11.8539]
[1731457114540,38.50320677,210.95,210.87,4.7421]
[1731457114829,0.12549,210.94,210.87,4.7421]
[1731457115038,0.12549,210.94,210.86,11.8562]
[1731457115039,38.50320677,210.93,210.86,11.8562]
[1731457115809,38.50320677,210.93,210.86,16.5986]
[1731457116012,0.12549,210.92,210.86,16.5986]
[1731457116213,0.12549,210.9,210.83,38.50320677]
[1731457116432,38.50320677,210.89,210.81,50.36170677]
[1731457116615,38.50320677,210.85,210.79,38.50320677]
[1731457116822,38.50320677,210.85,210.77,16.6057]
[1731457116823,38.50320677,210.91,210.83,38.50320677]
[1731457117130,38.50320677,210.92,210.85,38.50320677]
[1731457117328,43.776884,210.93,210.85,38.50320677]
[1731457117329,43.24420677,210.93,210.85,38.50320677]
[1731457117535,38.50320677,210.9,210.82,38.50320677]
[1731457117713,38.50320677,210.86,210.79,38.50320677]
[1731457117913,0.12549,210.86,210.8,38.50320677]
[1731457118217,16.6932,210.93,210.77,16.6057]
[1731457118218,38.50320677,210.9,210.82,38.50320677]
[1731457118426,38.50320677,210.88,210.81,38.50320677]
[1731457118633,38.50320677,210.85,210.78,38.50320677]
[1731457118811,38.62869677,210.86,210.78,38.50320677]
[1731457119013,0.12549,210.86,210.79,38.50320677]
[1731457119239,38.62869677,210.85,210.78,38.50320677]
[1731457121446,6.2072,210.88,210.82,38.50320677]
[1731457121820,38.50320677,210.92,210.84,38.50320677]
[1731457122132,6.6153,210.94,210.91,38.50320677]
[1731457122336,16.3664,210.97,210.91,38.50320677]
[1731457122648,0.12549,210.92,210.82,38.50320677]
[1731457122825,38.50320677,210.9,210.82,38.50320677]
[1731457123026,38.50320677,210.94,210.86,38.50320677]
[1731457123437,38.50320677,210.94,210.86,55.10180677]
[1731457123622,38.50320677,210.96,210.86,55.10180677]
[1731457123821,0.12549,210.95,210.86,55.10180677]
[1731457124025,38.50320677,210.96,210.88,38.50320677]
[1731457124320,16.3664,210.97,210.86,16.5986]
[1731457124321,16.3664,210.97,210.92,38.50320677]
[1731457124624,16.3664,210.97,210.9,38.50320677]